Cogmind - Beta 13 @@@ ROGUE MODE // 2024.04.20 @ 21:12:19 Player: Millea Result: Destroyed by G-47 Trooper with Particle Gun Performance ------------- Evolutions (0) 0 Regions Visited (2) 400 Robots Destroyed (14) 70 Value Destroyed (251) 251 Prototype IDs (0) 0 Alien Tech Used (0) 0 Bonus (0) 0 TOTAL SCORE: 721 Bonus ------- None Cogmind --------- Core Integrity 0/250 Matter 262/300 Energy 99/100 System Corruption 0% Temperature Cool (9) Movement Core (50) Location -10/Mines Parts ------- > --- POWER (1) -------- (None) > --- PROPULSION (2) --- (None) > --- UTILITY (2) ------ (None) > --- WEAPON (2) ------- (None) > --- INVENTORY (5) ---- Heat Sink Targeting Computer Targeting Computer Mining Laser Peak State ------------ > --- POWER ------------ Light Ion Engine > --- PROPULSION ------- Light Treads Light Treads > --- UTILITY ---------- Small Storage Unit Seismic Detector > --- WEAPON ----------- Light Assault Rifle Light Assault Rifle > --- INVENTORY -------- Light Ion Engine Aluminum Leg Aluminum Leg Wheel Compact Wheel Improved Terrain Scanner Small Laser Mining Laser [Rating: 8] Favorites ----------- Power Light Ion Engine Engine Light Ion Engine Propulsion Light Treads Treads Light Treads Wheel Wheel Utility Small Storage Unit Device Seismic Detector Storage Small Storage Unit Processor Targeting Computer Weapon Light Assault Rifle Energy Gun Small Laser Ballistic Gun Light Assault Rifle Ballistic Cannon Light Cannon Build | -11 -10 -10 ------- Run | Yrd Mat Min Slots Evolved . | . . . Power . | . . . Propulsion . | . . . Utility . | . . . Weapon . | . . . Parts Attached 15 | 7 3 5 Power 2 | 1 . 1 Engine 2 | 1 . 1 Core . | . . . Reactor . | . . . Propulsion 6 | 2 1 3 Treads 4 | 2 1 1 Leg . | . . . Wheel 2 | . . 2 Hover . | . . . Flight . | . . . Utility 3 | 2 1 . Device 1 | 1 . . Storage 1 | 1 . . Processor 1 | . 1 . Hackware . | . . . Protection . | . . . Artifact . | . . . Weapon 4 | 2 1 1 Energy Gun 1 | . . 1 Energy Cannon . | . . . Ballistic Gun 2 | 2 . . Ballistic Cannon 1 | . 1 . Launcher . | . . . Special Weapon . | . . . Impact Weapon . | . . . Slashing Weapon . | . . . Piercing Weapon . | . . . Special Melee Weapon . | . . . Unidentified Prototypes . | . . . Parts Lost 6 | . . 6 Power 2 | . . 2 Propulsion 3 | . . 3 Utility . | . . . Weapon 1 | . . 1 Highest Loss Streak 5 | . . 5 To Critical Strikes . | . . . Average Slot Usage (%) 96 | . 100 92 Engine 12 | . 14 11 Treads 26 | . 28 24 Wheel 1 | . . 2 Storage 14 | . 14 14 Processor 13 | . 12 14 Energy Gun 4 | . . 8 Ballistic Gun 13 | . 14 11 Ballistic Cannon 8 | . 13 4 Naked Turns 4 | . . 4 Heaviest Build 13 | 11 13 12 Greatest Support 40 | 40 40 40 Greatest Overweight (x) . | . . . Average Overweight (x) . | . . . Largest Inventory Capacity 8 | 8 8 8 Average Capacity 7 | 7 8 7 Most Carried 8 | 8 8 8 Average Carried 7 | 5 7 7 Final Capacity 8 | 8 8 5 Final Carried 8 | 8 8 4 Class Distribution -------------------- 100% | Mutant Dominant Class ---------------- Mutant | -10/Materials Mutant | -10/Mines Resources | -11 -10 -10 ----------- Run | Yrd Mat Min Matter Collected 461 | 281 117 63 Remotely . | . . . Salvage Created 444 | 189 192 63 Parts 22 | 10 10 2 Haulers Intercepted 1 | . 1 . Recyclers Shooed 2 | 1 1 . Parts Field Recycled . | . . . Retrieved Matter . | . . . Parts Self-Destructed . | . . . Prevented . | . . . Kills | -11 -10 -10 ------- Run | Yrd Mat Min Combat Hostiles Destroyed 4 | . 2 2 Guns 3 | . 2 1 Cannons 1 | . . 1 Classes Destroyed 6 | 3 3 . Worker 2 | 1 1 . Builder 1 | . 1 . Tunneler 4 | 4 . . Hauler 1 | . 1 . Recycler 2 | 1 1 . Grunt 4 | . 2 2 Best Kill Streak 5 | 3 5 2 Combat Bots Only 2 | . 2 2 Max Kills in Single Turn 2 | 1 2 1 Gunslinging . | . . . Exploded . | . . . Melee . | . . . Uniques/NPCs Destroyed . | . . . Combat | -11 -10 -10 -------- Run | Yrd Mat Min Hostile Shots Fired 59 | . 14 45 Missed 11 | . 2 9 Damage Taken 1134 | . 275 859 Core 255 | . 70 185 Absorbed by Shields . | . . . Core Remaining (%) 100 | 100 . . Volleys Fired 71 | 41 11 19 Largest 2 | 2 2 2 Hottest 60 | 40 55 60 Shots Fired 140 | 82 22 36 Gun 117 | 82 11 24 Cannon 23 | . 11 12 Launcher . | . . . Special . | . . . Kinetic 133 | 82 22 29 Thermal 7 | . . 7 Explosive . | . . . Electromagnetic . | . . . Robot Hit Streak 9 | 9 7 8 Robot Miss Streak 3 | 3 1 3 Penetration Max . | . . . Secondary Targets . | . . . Shots Hit Robots 93 | 52 14 27 Core Hits 32 | 14 10 8 Critical Kills . | . . . Critical Parts Destroyed 2 | 2 . . Critical Strikes 2 | 2 . . Destroy 2 | 2 . . Melee Attacks . | . . . Impact . | . . . Slashing . | . . . Piercing . | . . . Sneak Attacks . | . . . Combat Hostiles . | . . . Follow-up Attacks . | . . . Damage Inflicted 1287 | 419 550 318 Guns 658 | 419 77 162 Cannons 268 | . 126 142 Explosions 347 | . 347 . Melee . | . . . Ramming 14 | . . 14 Kinetic 875 | 419 203 253 Thermal 398 | . 347 51 Explosive . | . . . Electromagnetic . | . . . Impact . | . . . Slashing . | . . . Piercing . | . . . Highest Corruption . | . . . Average Corruption . | . . . Corruption Purged . | . . . Corruption Blocked . | . . . Overload Shots . | . . . Overflow Damage 25 | . 25 . Projectiles . | . . . Explosions 25 | . 25 . Melee . | . . . Knockbacks 2 | . 2 . Impact . | . . . Kinetic 1 | . 1 . Secondary 1 | . 1 . Self-Inflicted Damage 120 | . 120 . Shots 2 | . 2 . Rammed 8 | . . 8 Targets Rammed 8 | . . 8 Kicked . | . . . Crushed . | . . . Highest Temperature 99 | . 99 87 Average Temperature 39 | . 45 36 Received Heat Transfer 225 | . 87 138 Siege Activations . | . . . Robots Corrupted . | . . . Combat Hostiles . | . . . Parts Fried . | . . . Impact Corruptions . | . . . Robots Melted . | . . . Combat Hostiles . | . . . Parts Melted . | . . . Heat Transferred 325 | . 200 125 Parts Sabotaged . | . . . Parts Stolen . | . . . Parts Stripped . | . . . Power Chain Reactions . | . . . Alert | -11 -10 -10 ------- Run | Yrd Mat Min Peak Influence 186 | 30 186 122 Initial 72 | . 19 72 Average 68 | 13 99 96 Maximum Alert Level . | . . . Low Security (%) 100 | 100 100 100 Level 1 . | . . . Level 2 . | . . . Level 3 . | . . . Level 4 . | . . . Level 5 . | . . . High Security . | . . . Max Security . | . . . Squads Dispatched 1 | . 1 . Investigation . | . . . Extermination . | . . . Reinforcement 1 | . 1 . Assault . | . . . Garrison . | . . . Intercept . | . . . Searches Triggered . | . . . Construction Impeded . | . . . Haulers Reinforced . | . . . Active Scanning Responses . | . . . Cargo Convoy Interrupts . | . . . Stealth | -11 -10 -10 --------- Run | Yrd Mat Min Distress Signals 1 | . 1 . Communications Jammed . | . . . Distress Signals . | . . . Times Spotted 15 | . 4 11 Peak Tracking Total 8 | . 3 8 Tactical Retreats . | . . . Traps | -11 -10 -10 ------- Run | Yrd Mat Min Traps Triggered . | . . . Indirectly . | . . . Trap Hack Attempts . | . . . Triggered . | . . . Disarmed . | . . . Reprogrammed . | . . . Reused . | . . . Traps Extracted . | . . . Installed . | . . . Triggered . | . . . Machines | -11 -10 -10 ---------- Run | Yrd Mat Min Machines Disabled 4 | . 4 . Max in Single Turn 2 | . 2 . Machines Repaired . | . . . Machines Dismantled . | . . . Machines Sabotaged . | . . . Overloaded Fab Kills . | . . . Hacking | -11 -10 -10 --------- Run | Yrd Mat Min Machines Accessed . | . . . Terminals . | . . . Fabricators . | . . . Repair Stations . | . . . Recycling Units . | . . . Scanalyzers . | . . . Garrison Access . | . . . Total Hacks . | . . . Successful . | . . . Failed . | . . . Catastrophic . | . . . Database Lockouts . | . . . Manual . | . . . Terminals . | . . . Fabricators . | . . . Repair Stations . | . . . Recycling Units . | . . . Scanalyzers . | . . . Garrison Access . | . . . Terminal Hacks . | . . . Fabricator Hacks . | . . . Repair Station Hacks . | . . . Recycling Unit Hacks . | . . . Scanalyzer . | . . . Garrison Access Hacks . | . . . Unauthorized Hacks . | . . . Terminals . | . . . Fabricators . | . . . Repair Stations . | . . . Recycling Units . | . . . Scanalyzers . | . . . Garrison Access . | . . . Data Cores Recovered . | . . . Used . | . . . Hacking Detections . | . . . Full Trace Events . | . . . Feedback Events . | . . . Feedback Blocked . | . . . Robot Schematics Acquired . | . . . Robots Built . | . . . Authchips . | . . . Time . | . . . Total Robot Build Rating . | . . . Part Schematics Acquired . | . . . Parts Built . | . . . Authchips . | . . . Time . | . . . Total Part Build Rating . | . . . Parts Repaired . | . . . Time . | . . . Parts Recycled . | . . . Recycled Matter . | . . . Retrieved Matter . | . . . Retrieved Components . | . . . Parts Scanalyzed . | . . . Part Schematics Acquired . | . . . Parts Damaged . | . . . Bothacking | -11 -10 -10 ------------ Run | Yrd Mat Min Used RIF Installer . | . . . Robots Hacked . | . . . Non-combat . | . . . Combat . | . . . Robot Hacks Applied . | . . . Relay Couplers Released . | . . . Fabnet Peak Effective % . | . . . Robots Rewired . | . . . Allies Hacked . | . . . Hacks Repelled . | . . . Allies | -11 -10 -10 -------- Run | Yrd Mat Min Total Allies . | . . . Largest Group . | . . . Highest-Rated Group . | . . . Highest-Rated Ally . | . . . Total Orders . | . . . Ally Attacks . | . . . Total Damage . | . . . Kills . | . . . Allies Corrupted . | . . . Allies Melted . | . . . Intel | -11 -10 -10 ------- Run | Yrd Mat Min Robot Analysis Total . | . . . Derelict Logs Recovered . | . . . Drone Launches . | . . . Drone Recoveries . | . . . Exploration | -11 -10 -10 ------------- Run | Yrd Mat Min Turns Passed 754 | 262 237 255 Spaces Moved 326 | 90 121 115 Core 14 | 6 . 8 Treads 294 | 84 121 89 Legs . | . . . Wheels 18 | . . 18 Hover . | . . . Flight . | . . . Fastest Speed 50 | 50 160 50 Average Speed 151 | 152 160 141 Slowest Speed 160 | 160 160 160 Overloaded Moves . | . . . Propulsion Burnouts . | . . . Robots Hopped . | . . . Cave-ins Triggered . | . . . Exploration Rate (%) 24 | 7 31 35 Regions Visited 2 Branch Regions 1 Pre-discovered Areas . | . . . Known Exits Taken . | . . . Unknown Exits Taken 2 | 1 1 . Scrap Searched . | . . . Spaces Dug . | . . . Terrain Destroyed 34 | . 34 . Melee . | . . . Projectile . | . . . AOE 34 | . 34 . Terrain Rammed . | . . . Walls Destroyed . | . . . Machines Disabled . | . . . Actions | -11 -10 -10 --------- Run | Yrd Mat Min Total 464 | 147 147 170 Wait 22 | . 1 21 Move 324 | 89 120 115 Hop . | . . . Pick Up 15 | 10 5 . Fast Attach 7 | 5 1 1 Attach 6 | 2 . 4 Detach . | . . . Swap 2 | . 2 . Drop 9 | . 7 2 Fire 71 | 41 11 19 Melee . | . . . Ram . | . . . Kick . | . . . Crush 8 | . . 8 Escape Stasis . | . . . Rewire . | . . . Trap . | . . . Miscellaneous . | . . . Route ------- -11/Scrapyard -10/Materials -10/Mines History --------- Turn | Location | Event 5 | -11/Scrapyard | Discovered new exit (range 14) 263 | -11/Scrapyard | Entered Materials 329 | -10/Materials | Build established: Mutant 485 | -10/Materials | Discovered new exit (range 7) 500 | -10/Materials | Entered Mines 632 | -10/Mines | A weapon hastily lodged in a ceiling crevice suddenly fell to the ground 657 | -10/Mines | Assembled infested the area 715 | -10/Mines | Core integrity fell below 50% 732 | -10/Mines | Core integrity fell below 20% 751 | -10/Mines | Released all parts (4) 755 | -10/Mines | Destroyed by G-47 Trooper with Particle Gun Last Messages --------------- 00719_ Slammed into D-53 Grenadier. 00721_ The unstable cave ceiling collapses. 00721_ Slammed into D-53 Grenadier. 00724_ The unstable cave ceiling collapses. 00724_ Slammed into D-53 Grenadier. 00726_ K-01 Serf destroyed. 00727_ The unstable cave ceiling collapses. 00727_ Slammed into D-53 Grenadier. 00729_ The unstable cave ceiling collapses. 00729_ Slammed into D-53 Grenadier. 00731_ Lgt. Treads destroyed. 00731_ D-53 Grenadier destroyed. 00732_ Dropped Sml. Laser. 00738_ T-07 Excavator is excavating. 00739_ The unstable cave ceiling collapses. 00751_ Released Sml. Storage Unit. 00751_ Released Targeting Computer. 00751_ Released Wheel. 00751_ Released Com. Wheel. 00754_ The unstable cave ceiling collapses. Map ----- +----------------------------------------------------+ | ???????????????????????#?????????????????????????? | | ??????????????????????# ?????????????????????????? | | ?????????????????????# ?????????????????????????? | | ????????????????????? ?????????????????????????? | | ?????????#?????????? ?????????????????????????? | | ?????# ????????? ?????????????????????????? | | ### #####???? ?????????????????????????? | | #????# ?????#???????????????????? | | #????# #??? #???????????????????? | | ?## ## #????# #?? ????????????????????? | | ??## ???# ### ## #???????????????????? | | ???## ?????# #??????????????????? | | ????????????# % ##### ## #??????????????????? | | ?????????????# #????# #?????????????????????????? | | ?????????????# #????# #?????????????????????????? | | ?????????????# #????# #??######?????????????????? | | ?????????##### ##???# #### # ##????????????????? | | ?????????# # ##??# ## #????????????????? | | ????????## #?## ### ##???????????????? | | ???????## ### # #???????????????? | | ??????## ### # ## ##??????????????? | | ??????# #### # ######?????????? | | ??????# / ##?# ##????????? | | ??????## #??# [ #????????? | | ???????# # #??# ## #????????? | | ????#??# ## #?## #!@ g ##????????? | | ????# ## ## #?# ## # #?????????? | | ????# ## #?# ### ## # ##?????????? | | ????#### ## ### #?##?##### ####??????????? | | ???????# ### ### ##???????#=! ##???????????? | | ???????# #??#### #???????##= #???????????? | | ???###?# #?????# ????????### ##??????????? | | ??## ## #?????# ???#######?## ###????????? | | ?## #??????? ????# #??# ###??????? | | ?# #???????# #????# #??# #??????? | | ?# ######### ###### #??## #?????? | | ?# """ !% #???### #?????? | | ?# """ ################## % #?????### ##?????? | | # """ #????????????????#]% #???????? ##??????? | | #????????????????#### ##????????##???????? | | ##???????????????????# ##?????????????????? | | ####?????????????????#### ##????????????????? | | # #?????????????????????# #????????????????? | | ?????????????????????????# #????????????????? | | ?????????????????????????## ##????????????????? | | ??????????????????????????## ##?????????????????? | | ???????????????????????????###???????????????????? | | ?????????????????????????????????????????????????? | | ?????????????????????????????????????????????????? | | | +----------------------------------------------------+ Best States ------------- Heat Dissipation 25 Energy Generation 10 Energy Capacity 125 Matter Stores 277 Matter Capacity 300 Sight Range 16 Terrain Scan Density 10 Evasion (%) 42 Targeting Accuracy 5 Recoil Reduction 2 Item Schematics ----------------- None Robot Schematics ------------------ None Fabricated ------------ Nothing Alien Tech Used ----------------- None Achievements -------------- None Challenges ------------ None Game ------ Seed NeutronCarbideMachine Manual? 0 Play Time 00:07:04 Cumulative 235.6 hours Start 2024.04.20 @ 21:07:21 End 2024.04.20 @ 21:12:19 Sessions 1 Manual Loads 0 Difficulty Rogue Special Mode None Game No. 186 Rogue 186 Adventurer 0 Explorer 0 Win Type - Total 7 Types 6/0/0/1/0/0/0/0/0 Lore% 74 Gallery% 81 Achievement% 67 Wizard Run 0 Options --------- Layout 2 ASCII 1 Keyboard 0 Movement Mouse Keybinds 0 Fullscreen 2 Font 24/Smallcaps Map View 50x44 Zoom Use 0% Tactical HUD 1 Map Filters NONE Filters NONE Steam 1 RUN: 64768570-d94e-4715-8c25-c383f4c1dfd4